Cogmind - Beta 15 @@@ ROGUE MODE // 2025.10.18 @ 20:15:45 Player: mewcatx Result: Destroyed by P-70 Sage with High-powered Shock Rifle Performance ------------- Evolutions (5) 2500 Regions Visited (9) 1800 Robots Destroyed (182) 910 Value Destroyed (6133) 6133 Prototype IDs (14) 280 Alien Tech Used (0) 0 Bonus (1023) 1023 TOTAL SCORE: 12646 Bonus ------- High Alert Combat Kills 38 Follower Combat Kills 185 Registered with UFD 300 Met Optimus in HQ 500 Cogmind --------- Core Integrity 0/1000 Matter 260/300 Energy 100/100 System Corruption 28% Temperature Cool (0) Movement Core (50) Location -5/Factory Parts ------- > --- POWER (1) -------- (None) > --- PROPULSION (5) --- (None) > --- UTILITY (9) ------ Improved Signal Interpreter Core Analyzer > --- WEAPON (2) ------- (None) > --- INVENTORY (5) ---- Light Deuterium Engine Advanced Cooling System Advanced ECM Suite Great Axe DRS Beacon (Ready) Peak State ------------ > --- POWER ------------ Light Nuclear Core > --- PROPULSION ------- VSS Leg Flexi-carbon Leg Compact Wheel Compact Wheel Compact Wheel > --- UTILITY ---------- Large Storage Unit Improved Signal Interpreter Advanced Melee Analysis Suite Microactuators Layered Heavy Armor Plating Layered Heavy Armor Plating Hacking Suite > --- WEAPON ----------- Improved KE Penetrator Mini Assault Cannon > --- INVENTORY -------- Light Deuterium Engine Light Nuclear Core Light Nuclear Core Core Analyzer Advanced ECM Suite Improved Medium Armor Plating Layered Heavy Armor Plating Improved Arc Projector CPS Tube Great Axe Great Axe DRS Beacon [Rating: 71] Favorites ----------- Power Light Nuclear Core Engine Cooled Deuterium Engine Power Core Light Nuclear Core Propulsion Carbon-fiber Leg Treads Light Treads Leg Carbon-fiber Leg Wheel Compact Wheel Flight Unit Improved Flight Unit Utility Large Storage Unit Device Improved Sensor Array Storage Large Storage Unit Processor Improved Signal Interpreter Hackware Hacking Suite Protection Improved Medium Armor Plating Weapon Great Axe Energy Gun Gatling Laser Energy Cannon EM Pulse Cannon Ballistic Gun Light Assault Rifle Ballistic Cannon Improved Light Cannon Launcher EMP Blaster Special Weapon CPS Tube Impact Weapon Impact Mace Slashing Weapon Great Axe Build | -11 -10 -9 -9 -8 -7 -7 -7 -7 -5 ------- Run | Yrd Mat Mat Min Mat Fac Sto Rec Scr Fac Slots Evolved 10 | . . 2 . 2 2 . . . 4 Power . | . . . . . . . . . . Propulsion 3 | . . . . 1 1 . . . 1 Utility 7 | . . 2 . 1 1 . . . 3 Weapon . | . . . . . . . . . . Parts Attached 156 | 8 5 35 3 15 29 16 3 11 31 Power 21 | 2 1 4 1 3 3 3 1 1 2 Engine 14 | 2 1 4 1 3 . 1 1 . 1 Core 7 | . . . . . 3 2 . 1 1 Reactor . | . . . . . . . . . . Propulsion 49 | 2 1 8 1 4 8 4 2 6 13 Treads 12 | 2 1 4 1 4 . . . . . Leg 28 | . . 3 . . 8 3 1 5 8 Wheel 8 | . . 1 . . . . 1 1 5 Hover . | . . . . . . . . . . Flight 1 | . . . . . . 1 . . . Utility 51 | 2 1 8 1 5 14 4 . 3 13 Device 17 | 1 . 2 1 4 4 2 . . 3 Storage 2 | 1 1 . . . . . . . . Processor 9 | . . 1 . . 4 1 . 1 2 Hackware 2 | . . . . . 1 . . . 1 Protection 21 | . . 5 . 1 5 1 . 2 7 Artifact . | . . . . . . . . . . Weapon 35 | 2 2 15 . 3 4 5 . 1 3 Energy Gun 8 | 1 1 3 . 1 . 1 . . 1 Energy Cannon 4 | . . 3 . . . 1 . . . Ballistic Gun 11 | 1 1 6 . 2 . . . . 1 Ballistic Cannon 2 | . . 1 . . . 1 . . . Launcher 2 | . . 1 . . . 1 . . . Special Weapon 1 | . . . . . . . . . 1 Impact Weapon 2 | . . . . . 1 1 . . . Slashing Weapon 5 | . . 1 . . 3 . . 1 . Piercing Weapon . | . . . . . . . . . . Special Melee Weapon . | . . . . . . . . . . Unidentified Prototypes 8 | . . . . . . 7 . . 1 Corrupted Parts 1 | . . 1 . . . . . . . System Corruption 2 | . . 2 . . . . . . . Parts Lost 72 | . 2 18 1 . 10 2 1 8 30 Power 9 | . . 3 1 . 2 . . 1 2 Propulsion 30 | . 1 4 . . 3 2 1 3 16 Utility 23 | . . 7 . . 4 . . 2 10 Weapon 10 | . 1 4 . . 1 . . 2 2 Highest Loss Streak 13 | . 2 11 1 . 5 1 1 8 13 To Critical Strikes 2 | . . . . . . . . . 2 Average Backups 12 | 3 7 13 14 14 13 14 13 14 10 Power 1 | . 1 1 1 1 1 2 1 1 2 Propulsion 2 | 1 2 3 4 4 1 1 2 2 . Utility 4 | . 1 3 2 3 6 6 6 6 4 Weapon 3 | . 2 5 6 4 3 3 3 2 2 Tool/Special . | . . . . . . . . . . Unused Backups 36 | . . 8 . 5 8 7 . 5 3 Power 8 | . . . . 1 2 3 . . 2 Propulsion 6 | . . . . 1 1 1 . 3 . Utility 8 | . . . . 1 4 . . 2 1 Weapon 14 | . . 8 . 2 1 3 . . . Tool/Special . | . . . . . . . . . . Average Slot Usage (%) 94 | . 99 94 99 99 91 99 99 99 81 Engine 5 | . 14 10 10 9 1 . 5 6 1 Core 2 | . . . . . 5 6 1 . 2 Treads 8 | . 28 18 22 26 . . . . . Leg 15 | . . . . . 24 29 29 29 15 Wheel 1 | . . 2 . . . . . . 6 Device 9 | . 14 12 11 17 9 5 7 6 7 Storage 8 | . 14 11 11 9 7 7 7 7 4 Processor 10 | . . 6 11 9 11 14 15 15 12 Hackware 3 | . . . . . 4 7 7 7 6 Protection 8 | . . 9 11 9 10 8 6 7 7 Energy Gun 3 | . 11 3 11 9 3 . . . . Ballistic Gun 4 | . 16 10 11 9 . . . . . Impact Weapon 3 | . . . . . 5 6 7 6 . Slashing Weapon 4 | . . . . . 3 7 7 6 8 Peak Build Rating 71 | 7 7 17 21 34 48 51 49 52 71 Average Rating 37 | 5 6 13 18 30 42 48 48 49 59 On Entrance 26 | . 7 7 17 21 34 48 45 49 39 Naked Turns . | . . . . . . . . . . Heaviest Build 77 | 13 29 44 35 43 49 43 42 49 77 Greatest Support 89 | 40 40 40 48 68 68 65 67 77 89 Greatest Overweight (x) 5 | 3 . 2 . . . . . 5 4 Average Overweight (x) . | . . . . . . . . . 1 Largest Inventory Capacity 15 | 8 15 15 15 15 15 15 15 15 15 Average Capacity 14 | 7 11 15 15 15 15 15 15 15 14 Most Carried 15 | 4 9 15 15 15 15 15 15 15 15 Average Carried 13 | 3 7 13 14 14 14 14 14 14 12 Final Capacity 15 | 8 15 15 15 15 15 15 15 15 5 Final Carried 15 | 4 9 15 15 15 15 15 15 11 5 Class Distribution -------------------- 34% | Mutant 27% | Scavenger-Gladiator 20% | Scavenger-Mutant 13% | Gladiator Dominant Class ---------------- Mutant | -10/Materials Scavenger-Mutant | -9/Materials Mutant | -9/Mines Mutant | -8/Materials Mutant | -7/Factory Scavenger-Gladiator | -7/Storage Scavenger-Gladiator | -7/Recycling Gladiator | -7/Scraptown Scavenger-Gladiator | -5/Factory Resources | -11 -10 -9 -9 -8 -7 -7 -7 -7 -5 ----------- Run | Yrd Mat Mat Min Mat Fac Sto Rec Scr Fac Matter Collected 3722 | 288 174 792 92 571 460 381 83 178 703 Remotely . | . . . . . . . . . . Salvage Created 7208 | 115 206 1425 118 788 958 1175 150 391 1882 Parts 335 | 7 15 87 16 34 33 39 1 14 89 Haulers Intercepted 2 | . . 1 . 1 . . . . . Recyclers Shooed 5 | 1 . 1 . . . . . . 3 Parts Field Recycled . | . . . . . . . . . . Retrieved Matter . | . . . . . . . . . . Parts Self-Destructed . | . . . . . . . . . . Prevented . | . . . . . . . . . . Kills | -11 -10 -9 -9 -8 -7 -7 -7 -7 -5 ------- Run | Yrd Mat Mat Min Mat Fac Sto Rec Scr Fac Combat Hostiles Destroyed 148 | . 11 36 7 17 20 24 1 9 23 Melee 47 | . . . . . 13 12 1 1 20 Guns 58 | . 11 21 7 17 . . . . 2 Cannons 8 | . . 7 . . . . . . 1 AOE 18 | . . 8 . . . 3 . 7 . Classes Destroyed 20 | 2 2 5 . 1 2 2 . 5 1 Worker 1 | . . . . . . 1 . . . Builder 3 | . . 2 . . . 1 . . . Tunneler 4 | 1 . 1 2 . . . . . . Hauler 2 | . . 1 . 1 . . . . . Recycler 9 | 1 . 1 . . 1 . 1 . 5 Operator 5 | . . 2 . . 1 2 . . . Watcher 10 | . 1 1 . 2 2 2 . . 2 Swarmer 46 | . 11 17 7 3 4 . . . 4 Saboteur 1 | . . . . . . . . . 1 Grunt 52 | . . 12 . 10 7 15 . . 8 Brawler 2 | . . . . 1 1 . . . . Protector 1 | . . . . . . 1 . . . Sentry 22 | . . 7 . 3 3 6 1 . 2 Hunter 1 | . . . . . 1 . . . . Programmer 14 | . . . . . 4 2 . . 8 Federalist 2 | . . . . . . . . 2 . Explorer 1 | . . . . . . . . 1 . Ranger 1 | . . . . . . . . 1 . Guru 1 | . . . . . . . . 1 . Scrapper 4 | . . . . . . . . 4 . Best Kill Streak 8 | 1 4 7 4 3 4 7 1 8 4 Combat Bots Only 13 | . 4 6 4 3 4 13 1 8 4 Max Kills in Single Turn 3 | 1 1 3 2 1 1 1 1 2 1 Gunslinging 1 | . . . 1 . . . . . . Exploded 3 | . . 3 . . . 1 . 2 . Melee 1 | . . . . . 1 1 1 1 1 Uniques/NPCs Destroyed . | . . . . . . . . . . Combat | -11 -10 -9 -9 -8 -7 -7 -7 -7 -5 -------- Run | Yrd Mat Mat Min Mat Fac Sto Rec Scr Fac Hostile Shots Fired 1541 | . 67 244 34 59 217 180 54 201 485 Missed 510 | . 17 69 10 23 69 77 24 66 155 Hits 1031 | . 50 175 24 36 148 103 30 135 330 Melee 11 | . . . . 2 5 . . . 4 Projectile 1020 | . 50 175 24 34 143 103 30 135 326 AOE 2 | . . . . . . 2 . . . Critical Strikes 39 | . . 4 . . 8 1 . 10 16 Part Disruptions 1 | . . . . . . . . . 1 Damage Taken 14180 | . 522 2143 174 543 1790 1046 234 1952 5776 Core 2123 | . 70 375 15 48 144 142 39 281 1009 Absorbed by Shields 39 | . . . . . . . . . 39 Redirected to Shielding 82 | . . 2 16 9 . . . . 55 Regen/Repaired (Parts) 779 | . . . . . . 190 . 589 . Core Remaining (%) 55 | 100 72 . 2 91 . . . 13 . Volleys Fired 264 | 8 39 127 16 43 2 4 . 6 19 Largest 2 | 2 2 2 2 2 2 1 . 1 2 Hottest 126 | 60 60 126 86 105 105 36 . 36 105 Shots Fired 469 | 16 78 210 31 85 3 4 . 6 36 Gun 394 | 16 78 162 31 85 3 . . . 19 Cannon 52 | . . 36 . . . . . . 16 Launcher 22 | . . 12 . . . 4 . 6 . Special 1 | . . . . . . . . . 1 Kinetic 272 | 8 51 125 16 43 1 . . . 28 Thermal 97 | 8 24 6 15 42 2 . . . . Explosive 10 | . . . . . . 4 . 6 . Electromagnetic 89 | . 3 79 . . . . . . 7 Robot Hit Streak 21 | 4 8 15 20 21 4 4 . 9 13 Robot Miss Streak 6 | 5 5 5 3 6 2 . . . 2 Penetration Max . | . . . . . . . . . . Secondary Targets 8 | . 1 3 2 2 . . . . . Max Gunslinging Chain 1 | . 1 1 1 1 . . . . . Shots Hit Robots 510 | 8 39 141 24 62 58 56 8 7 107 Core Hits 237 | 4 19 63 9 47 15 26 1 11 42 Critical Kills 5 | . . . . . 3 2 . . . Critical Parts Destroyed 24 | . . 1 . . 10 10 1 1 1 Critical Strikes 43 | . . 2 1 1 15 13 3 1 7 Burn 3 | . . 1 1 1 . . . . . Destroy 2 | . . 1 . . . . . . 1 Smash 30 | . . . . . 13 13 3 1 . Sever 8 | . . . . . 2 . . . 6 Melee Attacks 313 | . . 2 . . 79 89 11 6 126 Impact 132 | . . . . . 56 63 9 4 . Slashing 181 | . . 2 . . 23 26 2 2 126 Piercing . | . . . . . . . . . . Sneak Attacks 16 | . . . . . 2 3 1 . 10 Combat Hostiles . | . . . . . . . . . . Follow-up Attacks 28 | . . . . . 3 9 2 . 14 Damage Inflicted 15760 | 73 389 2491 424 1344 2440 3037 351 884 4327 Guns 3790 | 73 389 1263 424 1344 59 . . . 238 Cannons 838 | . . 602 . . . . . . 236 Explosions 1914 | . . 581 . . . 496 . 800 37 Melee 9218 | . . 45 . . 2381 2541 351 84 3816 Ramming . | . . . . . . . . . . Kinetic 2362 | 28 194 982 212 504 26 . . . 416 Thermal 1565 | 45 163 272 212 840 33 . . . . Explosive 1296 | . . . . . . 496 . 800 . Electromagnetic 1319 | . 32 1192 . . . . . . 95 Impact 4360 | . . . . . 1874 2138 264 84 . Slashing 4858 | . . 45 . . 507 403 87 . 3816 Piercing . | . . . . . . . . . . Highest Corruption 27 | . 2 2 2 . 8 2 2 . 27 Average Corruption 4 | . 1 2 2 . 4 1 2 . 10 Corruption Purged 8 | . . . . . 8 . . . . Corruption Blocked . | . . . . . . . . . . Effects 115 | . 8 15 6 . 15 11 8 . 52 Message Errors 33 | . 5 6 2 . 3 5 3 . 9 Matter Fused 29 | . 1 3 3 . 5 1 2 . 14 Heat Flow Errors 13 | . . 1 . . 3 1 1 . 7 Energy Discharges 12 | . . 2 1 . . 1 1 . 7 Parts Rejected 2 | . . . . . . . . . 2 Parts Fused 1 | . 1 . . . . . . . . Data Loss (minor) 13 | . . 3 . . 3 2 . . 5 Data Loss (major) 3 | . 1 . . . 1 1 . . . Misfires 1 | . . . . . . . . . 1 Alerts 2 | . . . . . . . 1 . 1 Misdirections 5 | . . . . . . . . . 5 Weapon Failures 1 | . . . . . . . . . 1 Overload Shots . | . . . . . . . . . . Overflow Damage 1596 | . 26 9 . . 585 562 112 79 223 Projectiles 9 | . . 9 . . . . . . . Explosions 71 | . 26 . . . . . . 45 . Melee 1516 | . . . . . 585 562 112 34 223 Knockbacks 15 | . . 2 . . 5 6 . 1 1 Impact 11 | . . . . . 5 5 . 1 . Kinetic 3 | . . 2 . . . . . . 1 Secondary 1 | . . . . . . 1 . . . Self-Inflicted Damage 304 | . 110 194 . . . . . . . Shots 8 | . 1 7 . . . . . . . Rammed . | . . . . . . . . . . Targets Rammed . | . . . . . . . . . . Kicked . | . . . . . . . . . . Crushed . | . . . . . . . . . . Highest Temperature 393 | 40 60 233 . 117 261 236 207 188 393 Average Temperature 65 | 20 20 27 . 36 105 79 108 85 135 Received Heat Transfer 3749 | . . 618 . 162 345 348 78 1210 988 Effects 2 | . . . . . . . . . 2 Matter Decay 1 | . . . . . . . . . 1 Damage (minor) 1 | . . . . . . . . . 1 Siege Activations . | . . . . . . . . . . Martial Activations . | . . . . . . . . . . Shielding Activations . | . . . . . . . . . . Robots Disrupted . | . . . . . . . . . . Combat Hostiles . | . . . . . . . . . . Robots Corrupted 20 | . . . . . 9 10 . 1 . Combat Hostiles 17 | . . . . . 7 9 . 1 . Parts Fried 27 | . . 2 . . 9 13 . 1 2 Impact Corruptions 50 | . . . . . 23 23 3 1 . Robots Melted . | . . . . . . . . . . Combat Hostiles . | . . . . . . . . . . Parts Melted 7 | . 1 1 2 2 . 1 . . . Heat Transferred 3585 | 100 350 609 518 1933 75 . . . . Parts Sabotaged . | . . . . . . . . . . Parts Stolen . | . . . . . . . . . . Parts Stripped . | . . . . . . . . . . Power Chain Reactions 5 | . . 4 . . . . . . 1 Alert | -11 -10 -9 -9 -8 -7 -7 -7 -7 -5 ------- Run | Yrd Mat Mat Min Mat Fac Sto Rec Scr Fac Maximum Alert Level 2 | . 1 1 1 . . 2 . . . Low Security (%) 83 | 100 73 61 57 100 100 55 100 . 100 Level 1 13 | . 26 38 42 . . 19 . . . Level 2 3 | . . . . . . 24 . . . Level 3 . | . . . . . . . . . . Level 4 . | . . . . . . . . . . Level 5 . | . . . . . . . . . . High Security . | . . . . . . . . . . Max Security . | . . . . . . . . . . Peak Influence 453 | 5 237 398 284 97 97 453 166 . 136 Initial 166 | . . 65 141 27 8 40 166 . . Average 99 | . 118 205 178 47 31 200 40 . 33 Influence Increases 4840 | 10 427 1089 201 497 636 1105 43 . 832 Destroy 0b10 Robot/C 2880 | . 220 720 140 340 400 580 20 . 460 Destroy 0b10 Robot/NC 180 | 10 5 40 10 15 20 40 5 . 35 Destroy Leader 684 | . 42 164 20 86 114 164 . . 94 Allied During Kill 99 | . . . . . . 99 . . . Successful Hack 191 | . 11 45 16 9 6 42 16 . 46 Disable Machine 195 | . 30 30 . . 30 105 . . . Destroy Structure 101 | . 14 15 . 2 6 30 2 . 32 Partial Spotted 30 | . . 15 . . . 15 . . . Lose Combat Pursuer 480 | . 105 60 15 45 60 30 . . 165 Influence Decreases 4738 | 10 272 880 495 548 565 768 470 . 730 Entered New Map 678 | . . 90 223 43 11 50 261 . . Time Decay 3098 | 10 252 610 262 409 467 478 150 . 460 Lost Part 587 | . 20 180 10 . 87 20 . . 270 Lost Ally 220 | . . . . . . 220 . . . Purge Threat 155 | . . . . 96 . . 59 . . Squads Dispatched 28 | . 1 4 1 2 6 9 . . 5 Investigation 4 | . . 1 1 1 1 . . . . Extermination 12 | . . . . . 4 4 . . 4 Reinforcement 9 | . 1 3 . 1 1 2 . . 1 Assault 2 | . . . . . . 2 . . . Garrison 1 | . . . . . . 1 . . . Intercept . | . . . . . . . . . . Searches Triggered . | . . . . . . . . . . Construction Impeded . | . . . . . . . . . . Haulers Reinforced 1 | . . . . . . 1 . . . Active Scanning Responses . | . . . . . . . . . . Cargo Convoy Interrupts 1 | . . . . . . . . . 1 Stealth | -11 -10 -9 -9 -8 -7 -7 -7 -7 -5 --------- Run | Yrd Mat Mat Min Mat Fac Sto Rec Scr Fac Distress Signals 12 | . 3 3 . . 1 1 . . 4 Communications Jammed . | . . . . . . . . . . Distress Signals . | . . . . . . . . . . Times Spotted 265 | . 25 51 7 24 34 38 1 31 54 Peak Tracking Total 18 | . 3 9 4 4 6 7 1 14 18 Tactical Retreats 18 | . 5 3 1 2 2 1 . . 4 Traps | -11 -10 -9 -9 -8 -7 -7 -7 -7 -5 ------- Run | Yrd Mat Mat Min Mat Fac Sto Rec Scr Fac Traps Triggered 8 | . 2 2 . . 1 2 . . 1 Indirectly . | . . . . . . . . . . Trap Hack Attempts . | . . . . . . . . . . Triggered . | . . . . . . . . . . Disarmed . | . . . . . . . . . . Reprogrammed . | . . . . . . . . . . Reused . | . . . . . . . . . . Traps Extracted . | . . . . . . . . . . Installed . | . . . . . . . . . . Triggered . | . . . . . . . . . . Machines | -11 -10 -9 -9 -8 -7 -7 -7 -7 -5 ---------- Run | Yrd Mat Mat Min Mat Fac Sto Rec Scr Fac Machines Disabled 13 | . 2 2 . . 2 7 . . . Max in Single Turn 2 | . 2 1 . . 1 2 . . . Garrison Access 2 | . . . . . . 1 . . 1 Machines Repaired . | . . . . . . . . . . Machines Dismantled . | . . . . . . . . . . Machines Sabotaged . | . . . . . . . . . . Overloaded Fab Kills . | . . . . . . . . . . Hacking | -11 -10 -9 -9 -8 -7 -7 -7 -7 -5 --------- Run | Yrd Mat Mat Min Mat Fac Sto Rec Scr Fac Machines Accessed 68 | . 6 7 3 6 9 11 15 5 6 Terminals 39 | . 5 5 2 5 6 7 5 . 4 Fabricators 1 | . . . . . 1 . . . . Repair Stations 1 | . . . . . . 1 . . . Recycling Units 15 | . 1 2 . . 1 2 8 . 1 Scanalyzers 2 | . . . . 1 1 . . . . Garrison Access 2 | . . . . . . 1 . . 1 Total Hacks 248 | . 18 30 6 20 15 21 64 53 21 Successful 156 | . 5 11 3 8 7 9 48 53 12 Failed 92 | . 13 19 3 12 8 12 16 . 9 Catastrophic 11 | . . 2 2 2 1 1 2 . 1 Database Lockouts . | . . . . . . . . . . Manual 92 | . 10 19 3 8 4 12 22 . 14 Terminals 114 | . 16 21 5 17 9 13 21 . 12 Fabricators 2 | . . . . . 2 . . . . Repair Stations 3 | . . . . . . 3 . . . Recycling Units 44 | . 2 9 . . 2 4 19 . 8 Scanalyzers 5 | . . . . 3 2 . . . . Garrison Access 2 | . . . . . . 1 . . 1 Terminal Hacks 110 | . 4 8 3 4 2 3 30 53 3 Record 77 | . . . . . . . 24 53 . Robot Analysis 4 | . 1 2 . . . . 1 . . Prototype ID Bank 5 | . 1 3 . 1 . . . . . Open Door 3 | . . . 1 . . 2 . . . Level Access Points 1 | . . . 1 . . . . . . Branch Access Points 3 | . . . 1 . 1 1 . . . Terminal Index 1 | . . . . . . . . . 1 Alert Level 1 | . . 1 . . . . . . . Unreport Threat 3 | . . . . 1 . . 2 . . Locate Traps 4 | . 1 1 . 1 . . . . 1 Patrol Status 1 | . . . . . . . 1 . . Recall Investigation 1 | . . . . 1 . . . . . Hauler Manifests 2 | . 1 1 . . . . . . . Registered Components 3 | . . . . . 1 . 1 . 1 Zone Layout 1 | . . . . . . . 1 . . Fabricator Hacks 2 | . . . . . 2 . . . . Load Schematic 1 | . . . . . 1 . . . . Build 1 | . . . . . 1 . . . . Repair Station Hacks 2 | . . . . . . 2 . . . Scan Component 1 | . . . . . . 1 . . . Repair 1 | . . . . . . 1 . . . Recycling Unit Hacks 9 | . . . . . . . 7 . 2 Report Inventory 7 | . . . . . . . 6 . 1 Retrieve Matter 1 | . . . . . . . . . 1 Retrieve Components 1 | . . . . . . . 1 . . Scanalyzer 4 | . . . . 2 2 . . . . Insert Component 2 | . . . . 1 1 . . . . Analyze 2 | . . . . 1 1 . . . . Garrison Access Hacks 2 | . . . . . . 1 . . 1 Seal Access 2 | . . . . . . 1 . . 1 Unauthorized Hacks 26 | . 1 3 . 2 1 3 11 . 5 Terminals 9 | . . . . 1 . 2 3 . 3 Assimilate 1 | . . . . . . . . . 1 Botnet 8 | . . . . 1 . 2 3 . 2 Fabricators . | . . . . . . . . . . Repair Stations . | . . . . . . . . . . Recycling Units 16 | . 1 3 . . 1 1 8 . 2 Reject 11 | . 1 2 . . 1 1 5 . 1 Mask 5 | . . 1 . . . . 3 . 1 Scanalyzers 1 | . . . . 1 . . . . . Researchers 1 | . . . . 1 . . . . . Garrison Access . | . . . . . . . . . . Data Cores Recovered 1 | . . . . . . 1 . . . Used . | . . . . . . . . . . Hacking Detections 49 | . 6 7 2 6 7 9 8 . 4 Full Trace Events 3 | . . 1 . 1 1 . . . . Feedback Events . | . . . . . . . . . . Feedback Blocked . | . . . . . . . . . . Robot Schematics Acquired . | . . . . . . . . . . Robots Built . | . . . . . . . . . . Authchips . | . . . . . . . . . . Time . | . . . . . . . . . . Total Robot Build Rating . | . . . . . . . . . . Part Schematics Acquired 2 | . . . . 1 1 . . . . Parts Built 2 | . . . . . 2 . . . . Authchips . | . . . . . . . . . . Time 73 | . . . . . 73 . . . . Total Part Build Rating 6 | . . . . . 6 . . . . Parts Repaired 1 | . . . . . . 1 . . . Time 22 | . . . . . . 22 . . . Parts Recycled . | . . . . . . . . . . Recycled Matter . | . . . . . . . . . . Retrieved Matter 17 | . . . . . . . . . 17 Retrieved Components 3 | . . . . . . . 3 . . Parts Scanalyzed 2 | . . . . 1 1 . . . . Part Schematics Acquired 2 | . . . . 1 1 . . . . Parts Damaged . | . . . . . . . . . . Bothacking | -11 -10 -9 -9 -8 -7 -7 -7 -7 -5 ------------ Run | Yrd Mat Mat Min Mat Fac Sto Rec Scr Fac Used RIF Installer . | . . . . . . . . . . Robots Hacked . | . . . . . . . . . . Non-combat . | . . . . . . . . . . Combat . | . . . . . . . . . . Robot Hacks Applied . | . . . . . . . . . . Relay Couplers Released . | . . . . . . . . . . Fabnet Peak Effective % . | . . . . . . . . . . Robots Rewired . | . . . . . . . . . . Allies Hacked . | . . . . . . . . . . Hacks Repelled . | . . . . . . . . . . Allies | -11 -10 -9 -9 -8 -7 -7 -7 -7 -5 -------- Run | Yrd Mat Mat Min Mat Fac Sto Rec Scr Fac Total Allies 12 | . . . . . . 12 . . . Largest Group 10 | . . . . . . 10 . . . Highest-Rated Group 173 | . . . . . . 173 . . . Highest-Rated Ally 31 | . . . . . . 31 . . . Total Orders . | . . . . . . . . . . Ally Attacks 76 | . . . . . . 76 . . . Total Damage 882 | . . . . . . 882 . . . Kills 8 | . . . . . . 8 . . . Allies Corrupted . | . . . . . . . . . . Allies Melted 7 | . . . . . . . . 7 . Intel | -11 -10 -9 -9 -8 -7 -7 -7 -7 -5 ------- Run | Yrd Mat Mat Min Mat Fac Sto Rec Scr Fac Active Infowar (turns) 7881 | 16 788 1522 . . 828 1145 740 1644 1198 Sensors 5555 | . . . . . 828 1145 740 1644 1198 Terrain 966 | . . 966 . . . . . . . Seismic 1550 | 16 788 746 . . . . . . . ECM 2 | . . . . . . . . . 2 Robot Analysis Total 4 | . 1 2 . . . . 1 . . Derelict Logs Recovered 1 | . . . 1 . . . . . . Drone Launches . | . . . . . . . . . . Drone Recoveries . | . . . . . . . . . . Exploration | -11 -10 -9 -9 -8 -7 -7 -7 -7 -5 ------------- Run | Yrd Mat Mat Min Mat Fac Sto Rec Scr Fac Turns Passed 12794 | 164 788 1999 576 1131 2416 1400 740 1695 1885 Spaces Moved 7529 | 85 396 869 304 530 1600 865 531 1291 1058 Core 104 | 22 . . . . . . . . 82 Treads 1984 | 63 396 688 304 530 3 . . . . Legs 4573 | . . 1 . . 1597 865 531 1197 382 Wheels 868 | . . 180 . . . . . 94 594 Hover . | . . . . . . . . . . Flight . | . . . . . . . . . . Fastest Speed 50 | 50 160 115 160 160 120 120 122 107 50 Average Speed 133 | 150 160 154 160 160 121 121 123 124 124 Slowest Speed 320 | 200 160 320 160 160 160 123 125 125 265 Overloaded Moves . | . . . . . . . . . . Propulsion Burnouts . | . . . . . . . . . . Robots Hopped . | . . . . . . . . . . Potential Cave-ins 3 | . . . . . . 3 . . . Cave-ins Triggered . | . . . . . . . . . . Exploration Rate (%) 58 | 7 74 80 39 45 39 88 95 87 26 Regions Visited 9 Branch Regions 4 Pre-discovered Areas 6 | . . . 1 . . . . 5 . Known Exits Taken 5 | . . . 1 . 1 1 1 1 . Unknown Exits Taken 4 | 1 1 1 . 1 . . . . . Scrap Searched 5 | . . . 1 . . . . 4 . Spaces Dug 31 | . . . . . 6 9 2 2 12 Terrain Destroyed 120 | . 13 13 . . 6 29 2 43 14 Melee 31 | . . . . . 6 9 2 2 12 Projectile 4 | . . 2 . . . . . . 2 AOE 85 | . 13 11 . . . 20 . 41 . Terrain Rammed . | . . . . . . . . . . Walls Destroyed . | . . . . . . . . . . Machines Disabled . | . . . . . . . . . . Actions | -11 -10 -9 -9 -8 -7 -7 -7 -7 -5 --------- Run | Yrd Mat Mat Min Mat Fac Sto Rec Scr Fac Total 9422 | 103 483 1325 364 752 1934 1078 600 1365 1418 Wait 845 | . 35 225 36 122 164 68 46 29 120 Move 7520 | 84 395 868 303 529 1599 864 530 1290 1058 Hop . | . . . . . . . . . . Pick Up 135 | 3 6 36 3 19 28 5 4 11 20 Fast Attach 73 | 7 2 12 1 2 8 21 2 2 16 Attach 81 | . 1 18 1 8 15 1 3 5 29 Detach 19 | . . 1 . . 3 3 . . 12 Swap 70 | 1 2 14 1 5 13 12 . 7 15 Drop 130 | . 3 22 3 24 27 23 4 9 15 Fire 264 | 8 39 127 16 43 2 4 . 6 19 Melee 269 | . . 2 . . 75 69 9 6 108 Ram 1 | . . . . . . . . . 1 Kick . | . . . . . . . . . . Crush . | . . . . . . . . . . Escape Stasis 11 | . . . . . . 6 . . 5 Rewire 4 | . . . . . . 2 2 . . Trap . | . . . . . . . . . . Miscellaneous . | . . . . . . . . . . Route ------- -11/Scrapyard -10/Materials (discovered 4 exits: *Mat x2 / [*Min x2]) -9/Materials (discovered 4 exits: *Mat x2 / *Min x2) -9/Mines (discovered 2 exits: *Mat x2) -8/Materials (discovered 2 exits: *Fac x2) -7/Factory (discovered 5 exits: *Fac / *Sto x2 / *Low x2) -7/Storage (discovered 2 exits: *Fac / *Rec) -7/Recycling (discovered 2 exits: *Fac / *Scr) -7/Scraptown (discovered 2 exits: *Fac x2) -5/Factory (discovered 4 exits: *Fac x2 / *Upp x2) History --------- Turn | Location | Event 2 | -11/Scrapyard | Discovered new exit (range 16) 165 | -11/Scrapyard | Entered Materials 232 | -10/Materials | Discovered new exit (range 12) 303 | -10/Materials | Build established: Mutant 622 | -10/Materials | Discovered new exit (range 16) 828 | -10/Materials | Discovered new exit (range 13) 899 | -10/Materials | Discovered new exit (range 16) 953 | -10/Materials | Entered another Materials area 953 | -9/Materials | Evolved 2 slots: Utility x2 1320 | -9/Materials | Build established: Scavenger-Mutant 1701 | -9/Materials | Core integrity fell below 50% 1754 | -9/Materials | Lost 11 parts (2p3n4u2w) 1825 | -9/Materials | Discovered new exit (range 16) 1984 | -9/Materials | Discovered new exit (range 12) 2077 | -9/Materials | Core integrity fell below 20% 2598 | -9/Materials | Lost 3 parts (2u1w) 2655 | -9/Materials | Discovered new exit (range 15) 2834 | -9/Materials | Build established: Mutant 2896 | -9/Materials | Discovered new exit (range 7) 2952 | -9/Materials | Entered Mines 2975 | -9/Mines | Identified exit to Materials 3115 | -9/Mines | Learned location of Recycling (-7) 3372 | -9/Mines | Met a Derelict shopkeep closing up shop 3528 | -9/Mines | Entered Materials 3528 | -8/Materials | Evolved 2 slots: Propulsion x1, Utility x1 4148 | -8/Materials | Discovered new exit (range 3) 4581 | -8/Materials | Discovered new exit (range 4) 4659 | -8/Materials | Entered Factory 4659 | -7/Factory | Evolved 2 slots: Propulsion x1, Utility x1 4940 | -7/Factory | Discovered new exit (range 15) 5876 | -7/Factory | Discovered new exit (range 15) 5892 | -7/Factory | Identified exit to Factory 5935 | -7/Factory | Build established: Scavenger-Mutant 6288 | -7/Factory | Lost 5 parts (1p3u1w) 6387 | -7/Factory | Identified exit to Storage 6387 | -7/Factory | Identified exit to Lower Caves 6883 | -7/Factory | Build established: Scavenger-Gladiator 6966 | -7/Factory | Fabricated Carbon-fiber Leg? 7075 | -7/Factory | Entered Storage 7215 | -7/Storage | Repaired Imp. Medium Armor Plating 7473 | -7/Storage | Assisted by bots powering up and referring to "LRC-V3" 7533 | -7/Storage | Garrison activated, responded to threat 7575 | -7/Storage | Lost 4 allies 7661 | -7/Storage | Lost 6 allies 7813 | -7/Storage | Met a pair of Derelict thieves 7986 | -7/Storage | Destroyed 13 combat bots 8198 | -7/Storage | Discovered exit to Factory (range 16) 8410 | -7/Storage | Identified exit to Recycling 8471 | -7/Storage | Used back door to open Recycling access 8475 | -7/Storage | Entered Recycling 8773 | -7/Recycling | Discovered new exit (range 15) 8789 | -7/Recycling | Identified exit to Factory 9184 | -7/Recycling | Scanned before Scraplab entrance 9201 | -7/Recycling | Entered Scraplab 9214 | -7/Recycling | Discovered new exit (range 2) 9214 | -7/Recycling | Identified exit to Scraptown 9215 | -7/Recycling | Entered Scraptown 9215 | -7/Scraptown | System corruption cleaned by C-Scrubber 9249 | -7/Scraptown | Heard Great Nut preacher, LISTEN AND RECITE! 9552 | -7/Scraptown | Discovered exit to Factory (range 5) 9709 | -7/Scraptown | Visited Cyclists 9749 | -7/Scraptown | Visited Awakened 9776 | -7/Scraptown | Visited Artisan Demo Area 9847 | -7/Scraptown | Visited CR-KLE's Repair Center 9856 | -7/Scraptown | CR-KLE repaired 8 parts 9891 | -7/Scraptown | Build established: Gladiator 9940 | -7/Scraptown | Visited CPS Storage 9986 | -7/Scraptown | Visited UFD Registry 10003 | -7/Scraptown | Visited IN-MT5's Study 10233 | -7/Scraptown | Registered with UFD as "Plasmatail" 10288 | -7/Scraptown | Visited Supply Room 10327 | -7/Scraptown | Visited Botcube Research 10362 | -7/Scraptown | Visited Science Testing Area 10391 | -7/Scraptown | Visited Derelict Rescue Squad 10404 | -7/Scraptown | Found DRS Beacon 10453 | -7/Scraptown | Met Optimus 10453 | -7/Scraptown | Accepted into 0bPrime 10518 | -7/Scraptown | Visited Curators Association 10550 | -7/Scraptown | Visited Research Penetration Think Tank 10604 | -7/Scraptown | Civil war broke out across Scraptown 10667 | -7/Scraptown | Lost 5 allies 10782 | -7/Scraptown | Core integrity fell below 50% 10827 | -7/Scraptown | Optimus destroyed in the chaos of civil war 10871 | -7/Scraptown | Visited Cartography Club 10876 | -7/Scraptown | Lost 3 allies 10882 | -7/Scraptown | Learned location of Storage (-7) 10882 | -7/Scraptown | Learned location of Lower Caves (-6) 10882 | -7/Scraptown | Learned location of Upper Caves (-5) 10882 | -7/Scraptown | Learned location of Testing (-2) 10882 | -7/Scraptown | Learned 8 Materials zone layouts 10882 | -7/Scraptown | Learned 12 Research zone layouts 10882 | -7/Scraptown | Learned 12 Lower Caves zone layouts 10882 | -7/Scraptown | Learned 24 Upper Caves zone layouts 10882 | -7/Scraptown | Learned 8 Proximity Caves zone layouts 10882 | -7/Scraptown | Learned 24 Proximity Caves zone layouts 10882 | -7/Scraptown | Learned location of 3 exits from Upper Caves 10882 | -7/Scraptown | Learned location of 3 exits from Factory 10882 | -7/Scraptown | Learned 20 Upper Caves zone layouts 10882 | -7/Scraptown | Learned 4 Recycling zone layouts 10882 | -7/Scraptown | Learned location of Quarantine (-3) 10883 | -7/Scraptown | Destroyed 8 combat bots 10909 | -7/Scraptown | Core integrity fell below 20% 10910 | -7/Scraptown | Entered Factory 10910 | -5/Factory | Evolved 4 slots: Propulsion x1, Utility x3 10911 | -5/Factory | Identified exit to Factory 10911 | -5/Factory | Identified exit to Upper Caves 10934 | -5/Factory | Lost 8 parts (1p3n2u2w) 11089 | -5/Factory | Build established: Scavenger-Gladiator 11247 | -5/Factory | Lost 4 parts (3n1u) 11957 | -5/Factory | Build established: Hacker-Gladiator 12074 | -5/Factory | System corruption reached 10% 12158 | -5/Factory | Spotted B-75 Beast 12327 | -5/Factory | Discovered exit to Upper Caves (range 15) 12333 | -5/Factory | Lost 3 parts (2n1u) 12375 | -5/Factory | Build established: Scavenger-Mutant 12700 | -5/Factory | Cargo convoy interrupted 12743 | -5/Factory | Core integrity fell below 50% 12757 | -5/Factory | Core integrity fell below 20% 12771 | -5/Factory | Lost 13 parts (6n5u2w) 12795 | -5/Factory | Destroyed by P-70 Sage with High-powered Shock Rifle Last Messages --------------- Chaingunner. 12740_ Penetrated by Slug. 12740_ Critical hit (Destroy). 12740_ Carbon-fiber Leg destroyed. 12741_ System corrupted: Mic. Fission Core rejected. 12741_ Dropped Imp. Arc Projector. 12741_ P-70 Sage resets A-15 Conveyor, system corruption cleaned. 12743_ Slug penetrates P-70 Sage. 12747_ Penetrated by Slug. 12756_ Slug penetrates Assembly Bed. 12756_ Assembly Bed disabled. 12757_ K-01 Serf collects debris. 12763_ Critical hit (Burn: +37). 12773_ Penetrated by Slug. 12773_ Hacking Suite destroyed. 12775_ Penetrated by Slug. 12779_ System corrupted: Matter fused (-5). 12786_ Assembly Bed disabled. Map ----- +----------------------------------------------------+ | ??????????????????????# = ## #??????? | | ??????????????????????# ## #??????? | | ??????????????????????# ""T"" ## ######## | | ??????????????????????#] """"" # # | | ??????????????????????# # # | | ??????????????????????########### # | | ????????????????????????????????# # | | ??????????????????? ???????????# # | | ??????????????????? ???????????# # | | ???????????????????? ??????????# # | | ???????????????????? ??????????# # | | ????????????????????? ########### """" """ # | | ????????????????????? """" """" | | ?????????????????????? """" """" | | ?????????????????????? """" """" | | ?????????????????????? """" """" | | ?????????????????????? """" """" | | ?????????????????????? | | ?????????????????????? """T""" | | ????????????????######### o ###############/#### | | ????????????????# [ # ## # | | ????????????????#"""" + ## | # " | | ????????????????#"""" # ## # " | | ????????????????#"""" # ## """ ?#] " | | ????????????????#"""" # ## """ ?# " | | ????????????????#"""" #@ ## """??# " | | ????????????????#""" # ## ??# " | | ????????????????# # ##+##+#### " | | ???????????????#######/## pp + " | | ?????????# ##### #### " | | ?????????# H #???# #??# """ """ | | ?????????# #???# #??# """T""" | | ?????????# ########## #???# #??########### | | ?????????###????????????###+###???#+#????????????? | | ?????????????????????????????????????????????????? | | ?????????????????????????????????????????????????? | | ?????????????????????????????????????????????????? | | ?????????????????????????????????????????????????? | | ?????????????????????????????????????????????????? | | ?????????????????????????????????????????????????? | | ?????????????????????????????????????????????????? | | ?????????????????????????????????????????????????? | | | | | | | | | | | | | | | | | +----------------------------------------------------+ Best States ------------- Heat Dissipation 61 Energy Generation 18 Energy Capacity 310 Matter Stores 300 Matter Capacity 300 Sight Range 16 Robot Scan Range 15 Terrain Scan Range 14 Terrain Scan Density 10 ECM Strength 2 Armor Coverage 1200 Propulsion Shielding 33 Utility Shielding 66 Weapon Cycling 15 Melee Speed Boost 20 Evasion (%) 63 Targeting Accuracy 8 Melee Accuracy 8 Target Analysis 5 Core Analysis 6 Recoil Reduction 3 Offensive Hacking 20 Item Schematics ----------------- Missile Launcher | -8/Materials | Scanalyzed Carbon-fiber Leg | -7/Factory | Scanalyzed Robot Schematics ------------------ None Fabricated ------------ Carbon-fiber Leg | x2 | -7/Factory Repaired ---------- Imp. Medium Armor Plating | 20% | -7/Storage Alien Tech Used ----------------- None Achievements -------------- Deadly Force Challenges ------------ None Game ------ Seed RefineryComponentDirector Manual? 0 Play Time 02:31:30 Cumulative 65.8 hours Start 2025.10.18 @ 16:15:46 End 2025.10.18 @ 20:15:45 Sessions 1 Manual Loads 0 Difficulty Rogue Special Mode None Game No. 39 Rogue 32 Adventurer 7 Explorer 0 Win Type - Total 2 Types 1/0/0/0/0/0/0/1/0/0 Lore% 36 Gallery% 42 Achievement% 41 Wizard Run 0 Options --------- Layout 1 ASCII 0 Keyboard 0 Movement Mouse Keybinds 0 Fullscreen 2 Font 36/CogNarrow++ Map View 50x40 Zoom Use 0% Tactical HUD 1 Map Filters NONE Filters NONE Steam 0 RUN: 268f837f-0f17-4014-b3d2-ed7ea0b5b7b5